Cogmind - Beta 16 @@@ ROGUE MODE // 2025.10.31 @ 15:30:04 Player: Zish Result: Destroyed by G-34 Mercenary with Small Laser Performance ------------- Evolutions (0) 0 Regions Visited (1) 200 Robots Destroyed (10) 50 Value Destroyed (193) 193 Prototype IDs (0) 0 Alien Tech Used (0) 0 Bonus (0) 0 TOTAL SCORE: 443 Bonus ------- None Cogmind --------- Core Integrity 0/250 Matter 259/300 Energy 100/100 System Corruption 0% Temperature Hot (208) Movement Core (150) Ox2 Location -10/Materials Parts ------- > --- POWER (1) -------- (None) > --- PROPULSION (2) --- (None) > --- UTILITY (2) ------ Small Storage Unit Targeting Computer > --- WEAPON (2) ------- Assault Rifle > --- INVENTORY (8) ---- Ion Engine Peak State ------------ > --- POWER ------------ Light Ion Engine > --- PROPULSION ------- Light Treads Light Treads > --- UTILITY ---------- Small Storage Unit Targeting Computer > --- WEAPON ----------- EM Pulse Gun Beam Cannon > --- INVENTORY -------- Ion Engine Small Laser Assault Rifle [Rating: 7] Favorites ----------- Power Ion Engine Engine Ion Engine Propulsion Light Treads Treads Light Treads Utility Targeting Computer Storage Small Storage Unit Processor Targeting Computer Weapon EM Pulse Gun Energy Gun EM Pulse Gun Energy Cannon Beam Cannon Ballistic Gun Assault Rifle Build | -11 -10 ------- Run | Yrd Mat Slots Evolved . | . . Power . | . . Propulsion . | . . Utility . | . . Weapon . | . . Parts Attached 10 | 5 5 Power 2 | 1 1 Engine 2 | 1 1 Core . | . . Reactor . | . . Propulsion 2 | 2 . Treads 2 | 2 . Leg . | . . Wheel . | . . Hover . | . . Flight . | . . Utility 2 | . 2 Device . | . . Storage 1 | . 1 Processor 1 | . 1 Hackware . | . . Protection . | . . Artifact . | . . Weapon 4 | 2 2 Energy Gun 2 | 2 . Energy Cannon 1 | . 1 Ballistic Gun 1 | . 1 Ballistic Cannon . | . . Launcher . | . . Special Weapon . | . . Impact Weapon . | . . Slashing Weapon . | . . Piercing Weapon . | . . Special Melee Weapon . | . . Unidentified Prototypes . | . . Parts Lost 6 | . 6 Power 1 | . 1 Propulsion 2 | . 2 Utility . | . . Weapon 3 | . 3 Highest Loss Streak 6 | . 6 To Critical Strikes . | . . Average Backups 2 | 2 2 Power . | . 1 Propulsion . | . . Utility . | . . Weapon 1 | . 1 Tool/Special . | . . Unused Backups . | . . Power . | . . Propulsion . | . . Utility . | . . Weapon . | . . Tool/Special . | . . Average Slot Usage (%) 87 | . 87 Engine 12 | . 12 Treads 27 | . 27 Storage 6 | . 6 Processor 12 | . 12 Energy Gun 18 | . 18 Energy Cannon 7 | . 7 Peak Build Rating 7 | 5 7 Average Rating 5 | 3 6 On Entrance 2 | . 5 Avg Prop Armor Cover (%) . | . . Naked Turns . | . . Heaviest Build 13 | 8 13 Greatest Support 40 | 40 40 Greatest Overweight (x) 2 | . 2 Average Overweight (x) . | . . Largest Inventory Capacity 8 | 5 8 Average Capacity 6 | 5 6 Most Carried 4 | 4 4 Average Carried 2 | 2 2 Final Capacity 8 | 5 8 Final Carried 3 | 3 1 Class Distribution -------------------- 100% | Mutant Dominant Class ---------------- Mutant | -10/Materials Resources | -11 -10 ----------- Run | Yrd Mat Matter Collected 309 | 250 59 Remotely . | . . Salvage Created 461 | . 461 Parts 26 | . 26 Haulers Intercepted . | . . Recyclers Shooed . | . . Parts Field Recycled . | . . Retrieved Matter . | . . Parts Self-Destructed . | . . Prevented . | . . Parts Restored . | . . Kills | -11 -10 ------- Run | Yrd Mat Combat Hostiles Destroyed 5 | . 5 Guns 3 | . 3 Cannons 2 | . 2 Classes Destroyed 4 | . 4 Builder 3 | . 3 Recycler 2 | . 2 Swarmer 1 | . 1 Grunt 4 | . 4 Best Kill Streak 5 | . 5 Combat Bots Only 3 | . 3 Max Kills in Single Turn 1 | . 1 Gunslinging . | . . Exploded . | . . Melee . | . . Uniques/NPCs Destroyed . | . . Combat | -11 -10 -------- Run | Yrd Mat Hostile Shots Fired 116 | . 116 Missed 27 | . 27 Hits 89 | . 89 Projectile 89 | . 89 Damage Taken 917 | . 917 Core 250 | . 250 Absorbed by Shields . | . . Core Remaining (%) 100 | 100 . Volleys Fired 34 | . 34 Largest 2 | . 2 Hottest 100 | . 100 Shots Fired 59 | . 59 Gun 31 | . 31 Cannon 28 | . 28 Launcher . | . . Special . | . . Kinetic 6 | . 6 Thermal 34 | . 34 Explosive . | . . Electromagnetic 19 | . 19 Robot Hit Streak 6 | . 6 Robot Miss Streak 9 | . 9 Penetration Max . | . . Secondary Targets . | . . Shots Hit Robots 33 | . 33 Core Hits 12 | . 12 Critical Kills . | . . Critical Parts Destroyed . | . . Critical Strikes . | . . Melee Attacks . | . . Impact . | . . Slashing . | . . Piercing . | . . Sneak Attacks . | . . Combat Hostiles . | . . Follow-up Attacks . | . . Damage Inflicted 575 | . 575 Guns 298 | . 298 Cannons 226 | . 226 Explosions 51 | . 51 Melee . | . . Ramming . | . . Kinetic 33 | . 33 Thermal 331 | . 331 Explosive . | . . Electromagnetic 211 | . 211 Impact . | . . Slashing . | . . Piercing . | . . Highest Corruption . | . . Average Corruption . | . . Corruption Purged . | . . Corruption Blocked . | . . Overload Shots . | . . Overflow Damage . | . . Projectiles . | . . Explosions . | . . Melee . | . . Knockbacks . | . . Impact . | . . Kinetic . | . . Secondary . | . . Self-Inflicted Damage 38 | . 38 Shots 2 | . 2 Rammed . | . . Targets Rammed . | . . Kicked . | . . Crushed . | . . Highest Temperature 448 | . 448 Average Temperature 189 | . 189 Received Heat Transfer 342 | . 342 Effects 9 | . 9 Shutdowns 1 | . 1 Energy Bleed 2 | . 2 Interference 3 | . 3 Matter Decay 1 | . 1 Short Circuit 2 | . 2 Siege Activations . | . . Martial Activations . | . . Shielding Activations . | . . Robots Disrupted . | . . Combat Hostiles . | . . Robots Corrupted . | . . Combat Hostiles . | . . Parts Fried . | . . Impact Corruptions . | . . Robots Melted . | . . Combat Hostiles . | . . Parts Melted 1 | . 1 Heat Transferred 706 | . 706 Parts Sabotaged . | . . Parts Stolen . | . . Parts Stripped . | . . Power Chain Reactions 2 | . 2 Alert | -11 -10 ------- Run | Yrd Mat Maximum Alert Level . | . . Low Security (%) 100 | 100 100 Level 1 . | . . Level 2 . | . . Level 3 . | . . Level 4 . | . . Level 5 . | . . High Security . | . . Max Security . | . . Peak Influence 89 | . 89 Initial . | . . Average 26 | . 33 Influence Increases 187 | . 187 Destroy 0b10 Robot/C 100 | . 100 Destroy 0b10 Robot/NC 25 | . 25 Destroy Leader 20 | . 20 Successful Hack 8 | . 8 Disable Machine 30 | . 30 Destroy Structure 4 | . 4 Influence Decreases 168 | . 168 Time Decay 108 | . 108 Lost Part 60 | . 60 Squads Dispatched 2 | . 2 Investigation 2 | . 2 Extermination . | . . Reinforcement . | . . Assault . | . . Garrison . | . . Intercept . | . . Searches Triggered . | . . Construction Impeded . | . . Haulers Reinforced . | . . Active Scanning Responses . | . . Cargo Convoy Interrupts . | . . Stealth | -11 -10 --------- Run | Yrd Mat Distress Signals . | . . Communications Jammed . | . . Distress Signals . | . . Times Spotted 10 | . 10 Peak Tracking Total 6 | . 6 Tactical Retreats . | . . Traps | -11 -10 ------- Run | Yrd Mat Traps Triggered 2 | . 2 Indirectly . | . . Trap Hack Attempts . | . . Triggered . | . . Disarmed . | . . Reprogrammed . | . . Reused . | . . Traps Extracted . | . . Installed . | . . Triggered . | . . Machines | -11 -10 ---------- Run | Yrd Mat Machines Disabled 2 | . 2 Max in Single Turn 1 | . 1 Machines Repaired . | . . Machines Dismantled . | . . Machines Sabotaged . | . . Overloaded Fab Kills . | . . Hacking | -11 -10 --------- Run | Yrd Mat Machines Accessed 1 | . 1 Terminals 1 | . 1 Fabricators . | . . Repair Stations . | . . Recycling Units . | . . Scanalyzers . | . . Garrison Access . | . . Total Hacks 3 | . 3 Successful 1 | . 1 Failed 2 | . 2 Catastrophic . | . . Database Lockouts . | . . Manual . | . . Terminals 3 | . 3 Fabricators . | . . Repair Stations . | . . Recycling Units . | . . Scanalyzers . | . . Garrison Access . | . . Terminal Hacks 1 | . 1 Recall Reinforcements 1 | . 1 Fabricator Hacks . | . . Repair Station Hacks . | . . Recycling Unit Hacks . | . . Scanalyzer . | . . Garrison Access Hacks . | . . Unauthorized Hacks . | . . Terminals . | . . Fabricators . | . . Repair Stations . | . . Recycling Units . | . . Scanalyzers . | . . Garrison Access . | . . Data Cores Recovered . | . . Used . | . . Hacking Detections 1 | . 1 Full Trace Events . | . . Feedback Events . | . . Feedback Blocked . | . . Robot Schematics Acquired . | . . Robots Built . | . . Authchips . | . . Time . | . . Total Robot Build Rating . | . . Part Schematics Acquired . | . . Parts Built . | . . Authchips . | . . Time . | . . Total Part Build Rating . | . . Part Studies Acquired . | . . Parts Repaired . | . . Time . | . . Parts Recycled . | . . Recycled Matter . | . . Retrieved Matter . | . . Retrieved Components . | . . Parts Scanalyzed . | . . Part Schematics Acquired . | . . Parts Damaged . | . . Bothacking | -11 -10 ------------ Run | Yrd Mat Used RIF Installer . | . . Robots Hacked . | . . Non-combat . | . . Combat . | . . Robot Hacks Applied . | . . Relay Couplers Released . | . . Fabnet Peak Effective % . | . . Robots Rewired . | . . Allies Hacked . | . . Hacks Repelled . | . . Allies | -11 -10 -------- Run | Yrd Mat Total Allies . | . . Largest Group . | . . Highest-Rated Group . | . . Highest-Rated Ally . | . . Total Orders . | . . Ally Attacks . | . . Total Damage . | . . Kills . | . . Allies Corrupted . | . . Allies Melted . | . . Intel | -11 -10 ------- Run | Yrd Mat Active Infowar (turns) . | . . Robot Analysis Total . | . . Derelict Logs Recovered . | . . Drone Launches . | . . Drone Recoveries . | . . Exploration | -11 -10 ------------- Run | Yrd Mat Turns Passed 418 | 78 340 Spaces Moved 206 | 60 146 Core 31 | 27 4 Treads 175 | 33 142 Legs . | . . Wheels . | . . Hover . | . . Flight . | . . Fastest Speed 50 | 50 150 Average Speed 145 | 110 159 Slowest Speed 160 | 160 160 Overloaded Moves . | . . Propulsion Burnouts . | . . Robots Hopped . | . . Potential Cave-ins . | . . Cave-ins Triggered . | . . Exploration Rate (%) 15 | 4 26 Regions Visited 1 Branch Regions . Pre-discovered Areas . | . . Known Exits Taken . | . . Unknown Exits Taken 1 | 1 . Scrap Searched . | . . Spaces Dug . | . . Terrain Destroyed 2 | . 2 Melee . | . . Projectile . | . . AOE 2 | . 2 Terrain Rammed . | . . Walls Destroyed . | . . Machines Disabled . | . . Actions | -11 -10 --------- Run | Yrd Mat Total 265 | 72 193 Wait 5 | . 5 Move 205 | 59 146 Hop . | . . Pick Up 10 | 8 2 Fast Attach . | . . Attach 9 | 5 4 Detach . | . . Swap 2 | . 2 Drop . | . . Fire 34 | . 34 Melee . | . . Ram . | . . Kick . | . . Crush . | . . Escape Stasis . | . . Rewire . | . . Trap . | . . Miscellaneous . | . . Route ------- -11/Scrapyard -10/Materials (discovered 1 exit: [*Mat]) History --------- Turn | Location | Event 16 | -11/Scrapyard | Discovered new exit (range 15) 79 | -11/Scrapyard | Entered Materials 307 | -10/Materials | Build established: Mutant 358 | -10/Materials | Discovered new exit (range 16) 391 | -10/Materials | Core integrity fell below 50% 412 | -10/Materials | Core integrity fell below 20% 419 | -10/Materials | Destroyed by G-34 Mercenary with Small Laser Last Messages --------------- investigation squad. 00374_ S-10 Pest destroyed. 00378_ EM Pulse Gun destroyed. 00387_ Overheating: Energy bleed (-27). 00388_ Lgt. Ion Engine destroyed. 00393_ Aluminum Leg melted. 00393_ G-34 Mercenary destroyed. 00394_ Lgt. Treads destroyed. 00396_ Overheating: Energy bleed (-13). 00398_ Sml. Laser broken. 00398_ Overheating: Short circuit. 00399_ Lgt. Treads broken. 00399_ Overheating: Short circuit. 00400_ Beam Cannon destroyed. 00405_ Overheating: Matter decay (-42). 00409_ Broken Sml. Laser destroyed. 00413_ Overheating: System interference. 00413_ Assault Rifle temporarily disabled. 00415_ Broken Lgt. Treads destroyed. 00415_ Acquired 19 matter. Map ----- +----------------------------------------------------+ | ???# || # #??????? | | ???# || # #??????? | | ???# # #??????? | | ???########## #??????? | | ?############ #### #??????? | | # # #???####??????? | | # #= #?????????????? | | # """ #% #?????????????? | | # """ " + #?????????????? | | #% """ =* # #?????????????? | | # "%# #?????????????? | | # !=+ ! #?????????????? | | ##############+#####??????????? | | ???# + !=%*=| #??????????? | | ???# #### =**%=!"#??????????? | | ???# #??# =%!*% "#??????????? | | ???# #??# ! ["#??????????? | | ???# #??# ! #??????????? | | ???# #??# """ #??????????? | | ???# #??# """ #??????????? | | ???# #??# """ #??????????? | | ???# #??# #??????????? | | ???# #??##########??????????? | | ???# = #??????????????????????? | | ???# %*#??????????????????????? | | ???# @#??????????????????????? | | ???# #??????????????????????? | | ???# s #??????????????????????? | | ???# g#??????????????????????? | | ???# #??????????????????????? | | ???# +??????????????????????? | | ???# g #??????????????????????? | | ???# #??????????????????????? | | ???# u#??????????????????????? | | ???# ???????????????????????? | | ???# ???????????????????????? | | ???# ???????????????????????? | | ???# ???????????????????????? | | ???# ???????????????????????? | | ???# < ???????????????????????? | | ???? ???????????????????????? | | ??????????????????????????????? | | ??????????????????????????????? | | ??????????????????????????????? | | ??????????????????????????????? | | ??????????????????????????????? | | ??????????????????????????????? | | ??????????????????????????????? | | ??????????????????????????????? | | ??????????????????????????????? | +----------------------------------------------------+ Best States ------------- Heat Dissipation 25 Energy Generation 10 Energy Capacity 250 Matter Stores 300 Matter Capacity 300 Sight Range 16 Terrain Scan Density 10 Evasion (%) 50 Targeting Accuracy 5 Recoil Reduction 2 Item Schematics ----------------- None Robot Schematics ------------------ None Fabricated ------------ Nothing Repaired ---------- Nothing Studied --------- None Alien Tech Used ----------------- None Achievements -------------- None Challenges ------------ None Game ------ Seed AntimatterVariableChip Manual? 0 Play Time 00:14:20 Cumulative 16.3 hours Start 2025.10.31 @ 15:18:40 End 2025.10.31 @ 15:30:04 Sessions 1 Manual Loads 0 Difficulty Rogue Special Mode None Game No. 41 Rogue 41 Adventurer 0 Explorer 0 Win Type - Total 0 Types 0/0/0/0/0/0/0/0/0/0 Lore% 9 Gallery% 20 Achievement% 15 Wizard Run 0 Options --------- Layout 1 ASCII 0 Keyboard 0 Movement Vi Keybinds 0 Fullscreen 1 Font 24/Smallcaps Map View 50x35 Zoom Use 0% Tactical HUD 1 Map Filters NONE Filters NONE Steam 1 RUN: f2dfe9fd-a648-4827-a303-62f3f70e8d21